[Event "Titled Tuesday Blitz June 6 Early 2023"]
[White "Darini, Pouria"]
[Black "Pranav Anand"]
[WhiteFideId "12502200"]
[BlackFideId "46626786"]
[WhiteElo "2482"]
[BlackElo "2389"]
[Result "1-0"]
[Round "5"]
[TimeControl "180+2"]
[Date "2023.06.06"]
[WhiteClock "0:01:50"]
[BlackClock "0:01:57"]
[Board "33"]

1. e4 {[%clk 0:03:00]}  c5 {[%clk 0:02:59]} 2. Nf3 {[%clk 0:03:00]}  Nc6 {[%clk 0:02:59]} 3. Bb5 {[%clk 0:03:00]}  g6 {[%clk 0:02:57]} 4. O-O {[%clk 0:02:57]}  Qb6 {[%clk 0:02:55]} 5. Nc3 {[%clk 0:02:42]}  e6 {[%clk 0:02:53]} 6. Bxc6 {[%clk 0:02:39]}  bxc6 {[%clk 0:02:47]} 7. b3 {[%clk 0:02:39]}  Bg7 {[%clk 0:02:47]} 8. Bb2 {[%clk 0:02:39]}  Qc7 {[%clk 0:02:43]} 9. Nb5 {[%clk 0:02:33]}  cxb5 {[%clk 0:02:27]} 10. Bxg7 {[%clk 0:02:34]}  f6 {[%clk 0:02:23]} 11. Bxh8 {[%clk 0:02:34]}  Kf7 {[%clk 0:02:23]} 12. e5 {[%clk 0:02:31]}  Bb7 {[%clk 0:02:17]} 13. Bxf6 {[%clk 0:02:29]}  Nxf6 {[%clk 0:02:15]} 14. exf6 {[%clk 0:02:29]}  Kxf6 {[%clk 0:02:16]} 15. d4 {[%clk 0:02:27]}  c4 {[%clk 0:02:09]} 16. Qe2 {[%clk 0:02:26]}  d6 {[%clk 0:02:07]} 17. Rfe1 {[%clk 0:02:25]}  Re8 {[%clk 0:02:08]} 18. bxc4 {[%clk 0:02:24]}  bxc4 {[%clk 0:02:09]} 19. Qe3 {[%clk 0:02:25]}  Kg7 {[%clk 0:02:07]} 20. Rab1 {[%clk 0:02:25]}  Bd5 {[%clk 0:02:08]} 21. Ng5 {[%clk 0:02:14]}  h6 {[%clk 0:02:04]} 22. Ne4 {[%clk 0:02:14]}  Qc6 {[%clk 0:02:02]} 23. f3 {[%clk 0:02:04]}  Qd7 {[%clk 0:02:02]} 24. Nc3 {[%clk 0:02:04]}  Ba8 {[%clk 0:02:02]} 25. d5 {[%clk 0:02:04]}  e5 {[%clk 0:02:01]} 26. Rb4 {[%clk 0:01:56]}  Rc8 {[%clk 0:01:58]} 27. Reb1 {[%clk 0:01:55]}  Qf5 {[%clk 0:01:59]} 28. Qe4 {[%clk 0:01:54]}  Qf8 {[%clk 0:01:57]} 29. Rxc4 {[%clk 0:01:50]} 1-0


[Site "https://www.chess.com"]

[Event "Titled Tuesday Blitz June 6 Early 2023"]
[White "Agibileg, Uurtsaikh"]
[Black "Fridman, Daniel"]
[WhiteFideId "4901606"]
[BlackFideId "11600454"]
[WhiteElo "2353"]
[BlackElo "2538"]
[Result "0-1"]
[Round "5"]
[TimeControl "180+2"]
[Date "2023.06.06"]
[WhiteClock "0:00:04"]
[BlackClock "0:00:11"]
[Board "35"]

1. d4 {[%clk 0:02:59]}  d5 {[%clk 0:02:56]} 2. c4 {[%clk 0:02:58]}  e6 {[%clk 0:02:56]} 3. Nc3 {[%clk 0:02:57]}  Nf6 {[%clk 0:02:54]} 4. cxd5 {[%clk 0:02:57]}  exd5 {[%clk 0:02:55]} 5. Bg5 {[%clk 0:02:58]}  c6 {[%clk 0:02:55]} 6. e3 {[%clk 0:02:58]}  Bf5 {[%clk 0:02:54]} 7. Qf3 {[%clk 0:02:58]}  Bg6 {[%clk 0:02:55]} 8. Bxf6 {[%clk 0:02:58]}  Qxf6 {[%clk 0:02:56]} 9. Qxf6 {[%clk 0:02:59]}  gxf6 {[%clk 0:02:57]} 10. Nf3 {[%clk 0:02:58]}  Nd7 {[%clk 0:02:56]} 11. Nh4 {[%clk 0:02:58]}  Nb6 {[%clk 0:02:55]} 12. g3 {[%clk 0:02:52]}  Bb4 {[%clk 0:02:52]} 13. O-O-O {[%clk 0:02:49]}  Bxc3 {[%clk 0:02:36]} 14. bxc3 {[%clk 0:02:49]}  Na4 {[%clk 0:02:36]} 15. Kd2 {[%clk 0:02:48]}  b5 {[%clk 0:02:36]} 16. f4 {[%clk 0:02:40]}  Be4 {[%clk 0:02:34]} 17. Bg2 {[%clk 0:02:40]}  Nb2 {[%clk 0:02:28]} 18. Rde1 {[%clk 0:02:16]}  Nc4+ {[%clk 0:02:27]} 19. Kc1 {[%clk 0:02:16]}  f5 {[%clk 0:02:24]} 20. Bxe4 {[%clk 0:02:10]}  fxe4 {[%clk 0:02:24]} 21. Kc2 {[%clk 0:02:05]}  Kd7 {[%clk 0:02:22]} 22. g4 {[%clk 0:01:52]}  Rag8 {[%clk 0:02:20]} 23. Rhg1 {[%clk 0:01:46]}  f6 {[%clk 0:02:15]} 24. Nf5 {[%clk 0:01:34]}  Ke6 {[%clk 0:02:12]} 25. Nh6 {[%clk 0:01:34]}  Rg7 {[%clk 0:02:10]} 26. h4 {[%clk 0:01:34]}  Nd6 {[%clk 0:01:58]} 27. Rg3 {[%clk 0:01:29]}  a5 {[%clk 0:01:46]} 28. Reg1 {[%clk 0:01:28]}  b4 {[%clk 0:01:44]} 29. f5+ {[%clk 0:01:27]}  Kd7 {[%clk 0:01:13]} 30. g5 {[%clk 0:01:27]}  Rf8 {[%clk 0:01:11]} 31. gxf6 {[%clk 0:00:44]}  Rxg3 {[%clk 0:01:10]} 32. Rxg3 {[%clk 0:00:45]}  Rxf6 {[%clk 0:01:10]} 33. Rg7+ {[%clk 0:00:45]}  Kc8 {[%clk 0:01:05]} 34. Rxh7 {[%clk 0:00:46]}  bxc3 {[%clk 0:00:45]} 35. Kxc3 {[%clk 0:00:43]}  Nc4 {[%clk 0:00:45]} 36. Ng8 {[%clk 0:00:31]}  Rd6 {[%clk 0:00:33]} 37. f6 {[%clk 0:00:31]}  Nb6 {[%clk 0:00:19]} 38. h5 {[%clk 0:00:21]}  Nd7 {[%clk 0:00:19]} 39. Rxd7 {[%clk 0:00:21]}  Rxd7 {[%clk 0:00:17]} 40. Ne7+ {[%clk 0:00:21]}  Kd8 {[%clk 0:00:17]} 41. Nxc6+ {[%clk 0:00:21]}  Ke8 {[%clk 0:00:17]} 42. Ne5 {[%clk 0:00:18]}  Rh7 {[%clk 0:00:14]} 43. f7+ {[%clk 0:00:18]}  Ke7 {[%clk 0:00:13]} 44. Kb3 {[%clk 0:00:09]}  Rxh5 {[%clk 0:00:12]} 45. Ka4 {[%clk 0:00:10]}  Rh3 {[%clk 0:00:12]} 46. Kxa5 {[%clk 0:00:08]}  Rxe3 {[%clk 0:00:12]} 47. Kb5 {[%clk 0:00:09]}  Rc3 {[%clk 0:00:12]} 48. a4 {[%clk 0:00:07]}  e3 {[%clk 0:00:12]} 49. Nf3 {[%clk 0:00:06]}  e2 {[%clk 0:00:12]} 50. Ne1 {[%clk 0:00:07]}  Rc1 {[%clk 0:00:12]} 51. Nf3 {[%clk 0:00:05]}  Rf1 {[%clk 0:00:11]} 52. f8=R {[%clk 0:00:04]}  Kxf8 {[%clk 0:00:11]} 0-1


[Site "https://www.chess.com"]

[Event "Titled Tuesday Blitz June 6 Early 2023"]
[White "demon64fields"]
[Black "Girya, Olga"]
[BlackFideId "4195752"]
[WhiteElo "2846"]
[BlackElo "2263"]
[Result "1-0"]
[Round "5"]
[TimeControl "180+2"]
[Date "2023.06.06"]
[WhiteClock "0:02:06"]
[BlackClock "0:00:01"]
[Board "36"]

1. Nf3 {[%clk 0:03:00]}  d5 {[%clk 0:02:57]} 2. g3 {[%clk 0:03:01]}  Nf6 {[%clk 0:02:56]} 3. Bg2 {[%clk 0:03:01]}  e6 {[%clk 0:02:57]} 4. O-O {[%clk 0:03:02]}  Be7 {[%clk 0:02:57]} 5. d3 {[%clk 0:03:03]}  O-O {[%clk 0:02:57]} 6. Nbd2 {[%clk 0:03:04]}  Nc6 {[%clk 0:02:54]} 7. e4 {[%clk 0:03:04]}  dxe4 {[%clk 0:02:51]} 8. dxe4 {[%clk 0:03:05]}  e5 {[%clk 0:02:51]} 9. b3 {[%clk 0:03:05]}  Be6 {[%clk 0:02:44]} 10. Bb2 {[%clk 0:03:05]}  Nd7 {[%clk 0:02:42]} 11. Qe2 {[%clk 0:03:04]}  Bc5 {[%clk 0:02:26]} 12. c3 {[%clk 0:02:52]}  a5 {[%clk 0:02:25]} 13. Nc4 {[%clk 0:02:49]}  a4 {[%clk 0:01:53]} 14. b4 {[%clk 0:02:49]}  Ba7 {[%clk 0:01:40]} 15. a3 {[%clk 0:02:42]}  b5 {[%clk 0:01:20]} 16. Ne3 {[%clk 0:02:41]}  Bxe3 {[%clk 0:01:20]} 17. Qxe3 {[%clk 0:02:42]}  Nb6 {[%clk 0:01:19]} 18. Rad1 {[%clk 0:02:33]}  Qe7 {[%clk 0:01:17]} 19. Bc1 {[%clk 0:02:23]}  Bb3 {[%clk 0:01:11]} 20. Rde1 {[%clk 0:02:21]}  Nc4 {[%clk 0:01:05]} 21. Qe2 {[%clk 0:02:19]}  Rad8 {[%clk 0:01:04]} 22. Nh4 {[%clk 0:02:19]}  Nd6 {[%clk 0:01:00]} 23. Qg4 {[%clk 0:02:12]}  Bc4 {[%clk 0:00:43]} 24. Be3 {[%clk 0:02:13]}  Qe6 {[%clk 0:00:32]} 25. Nf5 {[%clk 0:02:12]}  Qg6 {[%clk 0:00:32]} 26. Qf3 {[%clk 0:02:08]}  Bxf1 {[%clk 0:00:25]} 27. Bxf1 {[%clk 0:02:09]}  Nxf5 {[%clk 0:00:15]} 28. exf5 {[%clk 0:02:10]}  Qf6 {[%clk 0:00:15]} 29. Bxb5 {[%clk 0:02:10]}  e4 {[%clk 0:00:12]} 30. Qxe4 {[%clk 0:02:07]}  Ne5 {[%clk 0:00:10]} 31. Bd4 {[%clk 0:02:05]}  Rxd4 {[%clk 0:00:01]} 32. cxd4 {[%clk 0:02:06]} 1-0


[Site "https://www.chess.com"]

[Event "Titled Tuesday Blitz June 6 Early 2023"]
[White "Aldokhin, Ivan"]
[Black "Dragnev, Valentin"]
[WhiteFideId "24115720"]
[BlackFideId "1634852"]
[WhiteElo "2322"]
[BlackElo "2487"]
[Result "0-1"]
[Round "5"]
[TimeControl "180+2"]
[Date "2023.06.06"]
[WhiteClock "0:00:02"]
[BlackClock "0:00:34"]
[Board "37"]

1. e4 {[%clk 0:03:00]}  c5 {[%clk 0:02:59]} 2. Nf3 {[%clk 0:03:00]}  e6 {[%clk 0:03:00]} 3. d4 {[%clk 0:03:00]}  cxd4 {[%clk 0:03:01]} 4. Nxd4 {[%clk 0:03:00]}  Nc6 {[%clk 0:03:01]} 5. Nc3 {[%clk 0:02:59]}  Qc7 {[%clk 0:03:02]} 6. Nxc6 {[%clk 0:02:59]}  bxc6 {[%clk 0:03:02]} 7. Bd3 {[%clk 0:03:00]}  d5 {[%clk 0:03:02]} 8. O-O {[%clk 0:03:00]}  Nf6 {[%clk 0:03:01]} 9. Qe2 {[%clk 0:02:59]}  Be7 {[%clk 0:03:00]} 10. f4 {[%clk 0:02:57]}  a5 {[%clk 0:02:56]} 11. f5 {[%clk 0:02:55]}  dxe4 {[%clk 0:02:20]} 12. Nxe4 {[%clk 0:02:46]}  Nxe4 {[%clk 0:02:03]} 13. Bxe4 {[%clk 0:02:34]}  exf5 {[%clk 0:01:53]} 14. Bxf5 {[%clk 0:02:08]}  Bxf5 {[%clk 0:01:54]} 15. Rxf5 {[%clk 0:02:09]}  O-O {[%clk 0:01:54]} 16. Bf4 {[%clk 0:01:58]}  Qb6+ {[%clk 0:01:53]} 17. Kh1 {[%clk 0:01:43]}  Qxb2 {[%clk 0:01:34]} 18. Be5 {[%clk 0:01:19]}  Qa3 {[%clk 0:01:34]} 19. Rf3 {[%clk 0:01:10]}  Qc5 {[%clk 0:01:26]} 20. Rc3 {[%clk 0:01:04]}  Qb5 {[%clk 0:01:23]} 21. Qe4 {[%clk 0:00:47]}  Rfe8 {[%clk 0:01:12]} 22. a4 {[%clk 0:00:33]}  Qd5 {[%clk 0:01:06]} 23. Qxd5 {[%clk 0:00:27]}  cxd5 {[%clk 0:01:07]} 24. Rd3 {[%clk 0:00:23]}  Red8 {[%clk 0:00:37]} 25. Rad1 {[%clk 0:00:22]}  f6 {[%clk 0:00:36]} 26. Bg3 {[%clk 0:00:15]}  Rdc8 {[%clk 0:00:36]} 27. Rxd5 {[%clk 0:00:09]}  Rxc2 {[%clk 0:00:36]} 28. Rd7 {[%clk 0:00:07]}  Bf8 {[%clk 0:00:37]} 29. h4 {[%clk 0:00:05]}  Rc4 {[%clk 0:00:36]} 30. Rb7 {[%clk 0:00:02]}  Rxa4 {[%clk 0:00:33]} 31. Rdd7 {[%clk 0:00:03]}  Rb4 {[%clk 0:00:34]} 32. Bd6 {[%clk 0:00:02]}  Rxb7 {[%clk 0:00:34]} 33. Rxb7 {[%clk 0:00:02]}  Bxd6 {[%clk 0:00:34]} 0-1


[Site "https://www.chess.com"]

[Event "Titled Tuesday Blitz June 6 Early 2023"]
[White "Kvaloy, Aksel Bu"]
[Black "Yeletsky, Ivan"]
[WhiteFideId "1528815"]
[BlackFideId "24180327"]
[WhiteElo "2318"]
[BlackElo "2380"]
[Result "0-1"]
[Round "5"]
[TimeControl "180+2"]
[Date "2023.06.06"]
[WhiteClock "0:00:20"]
[BlackClock "0:00:58"]
[Board "39"]

1. e4 {[%clk 0:03:00]}  c5 {[%clk 0:02:59]} 2. Nf3 {[%clk 0:02:58]}  g6 {[%clk 0:02:59]} 3. c3 {[%clk 0:02:55]}  d5 {[%clk 0:02:59]} 4. e5 {[%clk 0:02:53]}  Nc6 {[%clk 0:02:59]} 5. Bb5 {[%clk 0:02:51]}  Qb6 {[%clk 0:02:57]} 6. Bxc6+ {[%clk 0:02:51]}  Qxc6 {[%clk 0:02:57]} 7. d4 {[%clk 0:02:50]}  Bg4 {[%clk 0:02:51]} 8. O-O {[%clk 0:02:49]}  Nh6 {[%clk 0:02:23]} 9. Nbd2 {[%clk 0:02:44]}  cxd4 {[%clk 0:02:22]} 10. cxd4 {[%clk 0:02:44]}  Rc8 {[%clk 0:02:16]} 11. h3 {[%clk 0:02:42]}  Bf5 {[%clk 0:02:17]} 12. b3 {[%clk 0:02:36]}  Bc2 {[%clk 0:02:12]} 13. Qe2 {[%clk 0:02:33]}  Qa6 {[%clk 0:02:12]} 14. Qxa6 {[%clk 0:02:27]}  bxa6 {[%clk 0:02:13]} 15. Ba3 {[%clk 0:02:26]}  Kd7 {[%clk 0:02:11]} 16. Rac1 {[%clk 0:02:20]}  Nf5 {[%clk 0:02:10]} 17. g4 {[%clk 0:02:13]}  Ng7 {[%clk 0:02:09]} 18. Bc5 {[%clk 0:02:08]}  Bd3 {[%clk 0:02:08]} 19. Rfd1 {[%clk 0:02:07]}  Ne6 {[%clk 0:02:07]} 20. Nf1 {[%clk 0:02:05]}  Be2 {[%clk 0:02:06]} 21. Kg2 {[%clk 0:01:58]}  Bxd1 {[%clk 0:01:58]} 22. Rxd1 {[%clk 0:01:59]}  Nxc5 {[%clk 0:01:59]} 23. dxc5 {[%clk 0:02:00]}  Rxc5 {[%clk 0:01:59]} 24. b4 {[%clk 0:01:59]}  Rb5 {[%clk 0:01:57]} 25. a4 {[%clk 0:01:58]}  Rxb4 {[%clk 0:01:58]} 26. Rxd5+ {[%clk 0:01:59]}  Ke8 {[%clk 0:01:52]} 27. Rc5 {[%clk 0:01:49]}  e6 {[%clk 0:01:46]} 28. Rc7 {[%clk 0:01:47]}  Bg7 {[%clk 0:01:44]} 29. Rxa7 {[%clk 0:01:45]}  h5 {[%clk 0:01:25]} 30. Ne3 {[%clk 0:01:41]}  Rxa4 {[%clk 0:01:15]} 31. Ng5 {[%clk 0:01:39]}  Rf4 {[%clk 0:01:12]} 32. Kg3 {[%clk 0:01:05]}  Bxe5 {[%clk 0:01:11]} 33. Nf3 {[%clk 0:01:05]}  Bb8 {[%clk 0:01:06]} 34. Ra8 {[%clk 0:01:04]}  Rb4+ {[%clk 0:01:07]} 35. Kg2 {[%clk 0:00:59]}  Kd7 {[%clk 0:01:07]} 36. Rxa6 {[%clk 0:00:54]}  Bc7 {[%clk 0:01:06]} 37. Ng5 {[%clk 0:00:53]}  Rf4 {[%clk 0:01:05]} 38. f3 {[%clk 0:00:39]}  Rb8 {[%clk 0:01:03]} 39. Ne4 {[%clk 0:00:36]}  Rb2+ {[%clk 0:01:02]} 40. Kg1 {[%clk 0:00:33]}  Rxf3 {[%clk 0:01:01]} 41. Nc4 {[%clk 0:00:30]}  Rb4 {[%clk 0:00:58]} 42. Nc5+ {[%clk 0:00:29]}  Ke7 {[%clk 0:00:58]} 43. Nd2 {[%clk 0:00:26]}  Rxh3 {[%clk 0:00:56]} 44. Ra7 {[%clk 0:00:26]}  Rxg4+ {[%clk 0:00:54]} 45. Kf1 {[%clk 0:00:24]}  Rh1+ {[%clk 0:00:54]} 46. Ke2 {[%clk 0:00:24]}  Rh2+ {[%clk 0:00:55]} 47. Kd3 {[%clk 0:00:23]}  Rg3+ {[%clk 0:00:56]} 48. Kc2 {[%clk 0:00:22]}  Rgg2 {[%clk 0:00:48]} 49. Ne4 {[%clk 0:00:14]}  Kd7 {[%clk 0:00:48]} 50. Nf6+ {[%clk 0:00:12]}  Kc6 {[%clk 0:00:48]} 51. Ne4 {[%clk 0:00:10]}  f5 {[%clk 0:00:48]} 52. Ra6+ {[%clk 0:00:10]}  Kb5 {[%clk 0:00:48]} 53. Ra7 {[%clk 0:00:11]}  fxe4 {[%clk 0:00:48]} 54. Rxc7 {[%clk 0:00:11]}  Rxd2+ {[%clk 0:00:48]} 55. Kb3 {[%clk 0:00:12]}  Rb2+ {[%clk 0:00:48]} 56. Ka3 {[%clk 0:00:12]}  Ra2+ {[%clk 0:00:49]} 57. Kb3 {[%clk 0:00:12]}  Rhb2+ {[%clk 0:00:49]} 58. Kc3 {[%clk 0:00:12]}  Rc2+ {[%clk 0:00:50]} 59. Kb3 {[%clk 0:00:13]}  Rab2+ {[%clk 0:00:51]} 60. Ka3 {[%clk 0:00:13]}  Rxc7 {[%clk 0:00:52]} 61. Kxb2 {[%clk 0:00:12]}  h4 {[%clk 0:00:52]} 62. Kb3 {[%clk 0:00:12]}  h3 {[%clk 0:00:53]} 63. Kb2 {[%clk 0:00:13]}  h2 {[%clk 0:00:54]} 64. Kb3 {[%clk 0:00:14]}  g5 {[%clk 0:00:55]} 65. Ka3 {[%clk 0:00:15]}  g4 {[%clk 0:00:56]} 66. Ka2 {[%clk 0:00:16]}  g3 {[%clk 0:00:57]} 67. Kb2 {[%clk 0:00:17]}  g2 {[%clk 0:00:58]} 68. Kb3 {[%clk 0:00:17]}  g1=Q {[%clk 0:00:58]} 69. Ka2 {[%clk 0:00:18]}  Qc1 {[%clk 0:00:58]} 70. Kb3 {[%clk 0:00:19]}  Rc3+ {[%clk 0:00:58]} 71. Ka2 {[%clk 0:00:20]}  Ra3# {[%clk 0:00:58]} 0-1


[Site "https://www.chess.com"]

[Event "Titled Tuesday Blitz June 6 Early 2023"]
[White "Sourath Biswas"]
[Black "Gorovets, Andrey"]
[WhiteFideId "35091484"]
[BlackFideId "13504037"]
[WhiteElo "2171"]
[BlackElo "2459"]
[Result "1-0"]
[Round "5"]
[TimeControl "180+2"]
[Date "2023.06.06"]
[WhiteClock "0:00:12"]
[BlackClock "0:00:15"]
[Board "41"]

1. d4 {[%clk 0:03:00]}  e6 {[%clk 0:02:58]} 2. Nf3 {[%clk 0:03:01]}  f5 {[%clk 0:02:58]} 3. c4 {[%clk 0:03:01]}  Nf6 {[%clk 0:02:58]} 4. Nc3 {[%clk 0:03:01]}  Bb4 {[%clk 0:02:58]} 5. g3 {[%clk 0:02:45]}  O-O {[%clk 0:02:52]} 6. Bg2 {[%clk 0:02:44]}  d6 {[%clk 0:02:52]} 7. O-O {[%clk 0:02:45]}  Bxc3 {[%clk 0:02:52]} 8. bxc3 {[%clk 0:02:45]}  Qe7 {[%clk 0:02:51]} 9. Ba3 {[%clk 0:02:33]}  c5 {[%clk 0:02:50]} 10. Nd2 {[%clk 0:02:24]}  e5 {[%clk 0:02:48]} 11. Rb1 {[%clk 0:02:19]}  e4 {[%clk 0:02:42]} 12. f3 {[%clk 0:02:10]}  e3 {[%clk 0:02:40]} 13. Nb3 {[%clk 0:02:11]}  b6 {[%clk 0:02:30]} 14. dxc5 {[%clk 0:02:09]}  dxc5 {[%clk 0:02:28]} 15. f4 {[%clk 0:02:08]}  Bb7 {[%clk 0:02:24]} 16. Bxb7 {[%clk 0:02:08]}  Qxb7 {[%clk 0:02:25]} 17. Nxc5 {[%clk 0:02:09]}  Qe7 {[%clk 0:02:23]} 18. Ne4 {[%clk 0:01:17]}  Qxe4 {[%clk 0:02:15]} 19. Bxf8 {[%clk 0:01:18]}  Kxf8 {[%clk 0:02:15]} 20. Rb5 {[%clk 0:01:14]}  Nbd7 {[%clk 0:02:11]} 21. Qd6+ {[%clk 0:01:03]}  Kf7 {[%clk 0:02:10]} 22. Re5 {[%clk 0:00:33]}  Nxe5 {[%clk 0:02:03]} 23. fxe5 {[%clk 0:00:33]}  Ne8 {[%clk 0:02:02]} 24. Qd7+ {[%clk 0:00:30]}  Kg6 {[%clk 0:01:15]} 25. Qe6+ {[%clk 0:00:28]}  Nf6 {[%clk 0:01:15]} 26. Qd6 {[%clk 0:00:29]}  Qxc4 {[%clk 0:01:09]} 27. exf6 {[%clk 0:00:29]}  gxf6 {[%clk 0:01:10]} 28. Qd7 {[%clk 0:00:19]}  Qe4 {[%clk 0:00:49]} 29. Rf4 {[%clk 0:00:19]}  Qb1+ {[%clk 0:00:48]} 30. Rf1 {[%clk 0:00:18]}  Qc2 {[%clk 0:00:44]} 31. g4 {[%clk 0:00:17]}  Rg8 {[%clk 0:00:23]} 32. Qe6 {[%clk 0:00:15]}  Kg7 {[%clk 0:00:17]} 33. Rxf5 {[%clk 0:00:14]}  Rf8 {[%clk 0:00:18]} 34. g5 {[%clk 0:00:13]}  Qxe2 {[%clk 0:00:15]} 35. gxf6+ {[%clk 0:00:12]}  Kg6 {[%clk 0:00:15]} 36. f7+ {[%clk 0:00:12]} 1-0


[Site "https://www.chess.com"]

[Event "Titled Tuesday Blitz June 6 Early 2023"]
[White "Terletsky, Oleg"]
[Black "Molina, Roberto Junio Brito"]
[WhiteFideId "14116774"]
[BlackFideId "2109450"]
[WhiteElo "2126"]
[BlackElo "2376"]
[Result "0-1"]
[Round "5"]
[TimeControl "180+2"]
[Date "2023.06.06"]
[WhiteClock "0:00:02"]
[BlackClock "0:01:05"]
[Board "43"]

1. e4 {[%clk 0:03:00]}  c6 {[%clk 0:03:00]} 2. d4 {[%clk 0:03:00]}  d5 {[%clk 0:03:00]} 3. Nc3 {[%clk 0:03:00]}  dxe4 {[%clk 0:03:01]} 4. Nxe4 {[%clk 0:03:01]}  Nd7 {[%clk 0:03:01]} 5. Ng5 {[%clk 0:03:01]}  Ngf6 {[%clk 0:03:01]} 6. Bd3 {[%clk 0:03:01]}  e6 {[%clk 0:03:01]} 7. N1f3 {[%clk 0:02:59]}  Bd6 {[%clk 0:03:01]} 8. Qe2 {[%clk 0:02:59]}  h6 {[%clk 0:03:01]} 9. Ne4 {[%clk 0:02:59]}  Nxe4 {[%clk 0:03:00]} 10. Qxe4 {[%clk 0:02:59]}  Qc7 {[%clk 0:03:01]} 11. Qg4 {[%clk 0:02:57]}  g5 {[%clk 0:03:01]} 12. Qh3 {[%clk 0:02:36]}  Rg8 {[%clk 0:02:55]} 13. Nd2 {[%clk 0:02:32]}  Bf8 {[%clk 0:02:50]} 14. O-O {[%clk 0:02:16]}  b6 {[%clk 0:02:46]} 15. Ne4 {[%clk 0:02:11]}  Bb7 {[%clk 0:02:43]} 16. Qg3 {[%clk 0:02:09]}  Qxg3 {[%clk 0:02:32]} 17. hxg3 {[%clk 0:02:05]}  O-O-O {[%clk 0:02:26]} 18. g4 {[%clk 0:01:58]}  Kc7 {[%clk 0:02:22]} 19. f4 {[%clk 0:01:52]}  Bg7 {[%clk 0:02:12]} 20. c3 {[%clk 0:01:43]}  c5 {[%clk 0:01:59]} 21. fxg5 {[%clk 0:01:40]}  hxg5 {[%clk 0:02:00]} 22. Rxf7 {[%clk 0:01:20]}  cxd4 {[%clk 0:01:56]} 23. Bxg5 {[%clk 0:01:16]}  Rdf8 {[%clk 0:01:53]} 24. Raf1 {[%clk 0:01:00]}  dxc3 {[%clk 0:01:43]} 25. Bf4+ {[%clk 0:00:38]}  e5 {[%clk 0:01:36]} 26. Bg3 {[%clk 0:00:19]}  cxb2 {[%clk 0:01:24]} 27. Ng5 {[%clk 0:00:16]}  Bd5 {[%clk 0:01:21]} 28. Rxf8 {[%clk 0:00:03]}  Rxf8 {[%clk 0:01:20]} 29. Rxf8 {[%clk 0:00:03]}  Bxf8 {[%clk 0:01:20]} 30. Nf3 {[%clk 0:00:03]}  Bd6 {[%clk 0:01:15]} 31. Nd2 {[%clk 0:00:03]}  Nc5 {[%clk 0:01:12]} 32. Bb1 {[%clk 0:00:02]}  e4 {[%clk 0:01:05]} 33. Bxd6+ {[%clk 0:00:02]}  Kxd6 {[%clk 0:01:06]} 34. Nc4+ {[%clk 0:00:02]}  Bxc4 {[%clk 0:01:05]} 0-1


[Site "https://www.chess.com"]

[Event "Titled Tuesday Blitz June 6 Early 2023"]
[White "Andreev, Konstantin"]
[Black "Djordjevic, Vuk"]
[WhiteFideId "24239305"]
[BlackFideId "902098"]
[WhiteElo "2106"]
[BlackElo "2463"]
[Result "0-1"]
[Round "5"]
[TimeControl "180+2"]
[Date "2023.06.06"]
[WhiteClock "0:00:37"]
[BlackClock "0:00:18"]
[Board "47"]

1. e4 {[%clk 0:03:00]}  e6 {[%clk 0:02:59]} 2. d4 {[%clk 0:03:00]}  d5 {[%clk 0:03:00]} 3. Nc3 {[%clk 0:03:00]}  Bb4 {[%clk 0:03:00]} 4. e5 {[%clk 0:03:00]}  c5 {[%clk 0:03:00]} 5. a3 {[%clk 0:02:59]}  Bxc3+ {[%clk 0:03:01]} 6. bxc3 {[%clk 0:03:00]}  Qa5 {[%clk 0:02:57]} 7. Bd2 {[%clk 0:02:58]}  Qa4 {[%clk 0:02:56]} 8. Nf3 {[%clk 0:02:57]}  b6 {[%clk 0:02:55]} 9. Bd3 {[%clk 0:02:57]}  Ba6 {[%clk 0:02:54]} 10. Qe2 {[%clk 0:02:54]}  Bxd3 {[%clk 0:02:48]} 11. cxd3 {[%clk 0:02:55]}  Ne7 {[%clk 0:02:47]} 12. O-O {[%clk 0:02:52]}  c4 {[%clk 0:02:41]} 13. dxc4 {[%clk 0:02:50]}  Qxc4 {[%clk 0:02:41]} 14. Qxc4 {[%clk 0:02:45]}  dxc4 {[%clk 0:02:41]} 15. Ng5 {[%clk 0:02:46]}  Nbc6 {[%clk 0:02:34]} 16. Ne4 {[%clk 0:02:45]}  O-O {[%clk 0:02:32]} 17. Nd6 {[%clk 0:02:45]}  Na5 {[%clk 0:02:32]} 18. Rab1 {[%clk 0:02:38]}  Nd5 {[%clk 0:02:14]} 19. f4 {[%clk 0:02:32]}  a6 {[%clk 0:02:10]} 20. f5 {[%clk 0:02:31]}  b5 {[%clk 0:02:07]} 21. Rf3 {[%clk 0:02:26]}  Nb3 {[%clk 0:01:36]} 22. Be1 {[%clk 0:02:22]}  Rad8 {[%clk 0:01:33]} 23. Rb2 {[%clk 0:02:18]}  exf5 {[%clk 0:01:16]} 24. Rxf5 {[%clk 0:02:14]}  f6 {[%clk 0:01:12]} 25. Rbf2 {[%clk 0:01:47]}  fxe5 {[%clk 0:01:08]} 26. Rxf8+ {[%clk 0:01:47]}  Rxf8 {[%clk 0:01:08]} 27. Rxf8+ {[%clk 0:01:48]}  Kxf8 {[%clk 0:01:08]} 28. dxe5 {[%clk 0:01:49]}  Ke7 {[%clk 0:01:03]} 29. a4 {[%clk 0:01:48]}  bxa4 {[%clk 0:00:51]} 30. Nxc4 {[%clk 0:01:48]}  Nc7 {[%clk 0:00:50]} 31. Na3 {[%clk 0:01:01]}  Nb5 {[%clk 0:00:38]} 32. c4 {[%clk 0:01:00]}  Nxa3 {[%clk 0:00:33]} 33. Bb4+ {[%clk 0:01:00]}  Ke6 {[%clk 0:00:34]} 34. Bxa3 {[%clk 0:01:01]}  Kxe5 {[%clk 0:00:34]} 35. Bb2+ {[%clk 0:01:01]}  Ke4 {[%clk 0:00:28]} 36. Bxg7 {[%clk 0:00:51]}  a3 {[%clk 0:00:26]} 37. c5 {[%clk 0:00:46]}  a2 {[%clk 0:00:22]} 38. Bb2 {[%clk 0:00:37]}  Nxc5 {[%clk 0:00:18]} 39. Kf2 {[%clk 0:00:37]}  Nd3+ {[%clk 0:00:18]} 0-1


[Site "https://www.chess.com"]